Cogmind - Beta 13 *** ADVENTURER MODE // 2024.04.04 @ 20:16:43 Player: Tav Result: Destroyed by Y-45 Defender with Heavy Assault Rifle Performance ------------- Evolutions (0) 0 Regions Visited (4) 800 Robots Destroyed (34) 170 Value Destroyed (926) 926 Prototype IDs (2) 40 Alien Tech Used (0) 0 Bonus (0) 0 TOTAL SCORE: 1936 Bonus ------- None Cogmind --------- Core Integrity 0/250 Matter 272/300 Energy 125/125 System Corruption 1% Temperature Cool (13) Movement Rolling (105) Location -9/Recycling Parts ------- > --- POWER (1) -------- Light Ion Engine > --- PROPULSION (2) --- Compact Wheel Subdweller Monowheel > --- UTILITY (2) ------ Scrap Engine > --- WEAPON (2) ------- Light Cannon Grenade Launcher > --- INVENTORY (5) ---- Subdweller Power Source Cooling System Terrain Scanner Datajack Peak State ------------ > --- POWER ------------ Meta Core > --- PROPULSION ------- Subdweller Monowheel Subdweller Monowheel > --- UTILITY ---------- Large Storage Unit Improved Terrain Scanner Light Armor Plating > --- WEAPON ----------- Barrage Gun Heavy Battle Rifle Subdweller Shrapnel Launcher > --- INVENTORY -------- Light Ion Engine Subdweller Power Source Cooling System Cooling System Small Storage Unit Signal Interpreter Terrain Scanner Propulsion Shielding Improved EM Shotgun Spread Laser Grenade Launcher Datajack Mining Laser [Rating: 32] Favorites ----------- Power Light Ion Engine Engine Light Ion Engine Power Core Meta Core Propulsion Light Treads Treads Light Treads Wheel Subdweller Monowheel Utility Large Storage Unit Device Improved Terrain Scanner Storage Large Storage Unit Processor Signal Interpreter Protection Light Armor Plating Weapon Spread Laser Energy Gun Spread Laser Ballistic Gun Heavy Battle Rifle Ballistic Cannon Light Cannon Launcher Subdweller Shrapnel Launcher Special Weapon Mining Laser Special Melee Weapon Datajack Build | -11 -10 -10 -10 -9 ------- Run | Yrd Mat Min Sub Rec Slots Evolved . | . . . . . Power . | . . . . . Propulsion . | . . . . . Utility . | . . . . . Weapon . | . . . . . Parts Attached 47 | 6 8 3 24 6 Power 5 | 1 1 . 2 1 Engine 4 | 1 1 . 1 1 Core 1 | . . . 1 . Reactor . | . . . . . Propulsion 7 | 2 . . 4 1 Treads 2 | 2 . . . . Leg . | . . . . . Wheel 5 | . . . 4 1 Hover . | . . . . . Flight . | . . . . . Utility 10 | 1 3 1 4 1 Device 5 | . 2 1 1 1 Storage 2 | 1 1 . . . Processor 1 | . . . 1 . Hackware . | . . . . . Protection 2 | . . . 2 . Artifact . | . . . . . Weapon 25 | 2 4 2 14 3 Energy Gun 9 | 2 4 . 3 . Energy Cannon . | . . . . . Ballistic Gun 5 | . . . 5 . Ballistic Cannon 1 | . . . . 1 Launcher 4 | . . 1 2 1 Special Weapon 5 | . . 1 3 1 Impact Weapon . | . . . . . Slashing Weapon . | . . . . . Piercing Weapon . | . . . . . Special Melee Weapon 1 | . . . 1 . Unidentified Prototypes 2 | . 1 . 1 . Parts Lost 6 | . . . 6 . Power . | . . . . . Propulsion 2 | . . . 2 . Utility 1 | . . . 1 . Weapon 3 | . . . 3 . Highest Loss Streak 4 | . . . 4 . To Critical Strikes . | . . . . . Average Slot Usage (%) 92 | . 97 99 89 73 Engine 8 | . 14 14 5 14 Core 4 | . . . 6 . Treads 16 | . 28 28 10 . Wheel 6 | . . . 10 16 Device 8 | . 12 14 5 14 Storage 12 | . 14 14 12 . Processor 3 | . . . 5 . Protection 3 | . . . 5 . Energy Gun 14 | . 27 6 11 . Ballistic Gun 4 | . . . 6 . Launcher 3 | . . 12 3 14 Special Weapon 4 | . . 8 5 10 Naked Turns . | . . . . . Heaviest Build 45 | 12 31 31 45 32 Greatest Support 40 | 40 40 40 40 36 Greatest Overweight (x) 10 | . . . 10 1 Average Overweight (x) . | . . . 1 . Largest Inventory Capacity 15 | 8 15 15 15 15 Average Capacity 13 | 6 11 15 15 6 Most Carried 15 | 3 12 14 15 11 Average Carried 10 | . 6 12 13 4 Final Capacity 15 | 8 15 15 15 5 Final Carried 14 | 1 12 14 11 4 Class Distribution -------------------- 82% | Mutant 17% | Tank Dominant Class ---------------- Mutant | -10/Materials Mutant | -10/Mines Mutant | -10/Subcaves Mutant | -9/Recycling Resources | -11 -10 -10 -10 -9 ----------- Run | Yrd Mat Min Sub Rec Matter Collected 927 | 260 76 82 449 60 Remotely . | . . . . . Salvage Created 1025 | . 419 82 481 43 Parts 74 | . 29 6 35 4 Haulers Intercepted 1 | . 1 . . . Recyclers Shooed . | . . . . . Parts Field Recycled . | . . . . . Retrieved Matter . | . . . . . Parts Self-Destructed 17 | . . . 17 . Prevented 1 | . . . 1 . Kills | -11 -10 -10 -10 -9 ------- Run | Yrd Mat Min Sub Rec Combat Hostiles Destroyed 26 | . 7 3 16 . Guns 21 | . 6 . 15 . AOE 4 | . . 3 1 . Classes Destroyed 10 | . 4 2 4 . Tunneler 3 | . 2 1 . . Hauler 1 | . 1 . . . Recycler 2 | . . 1 . 1 Turret 2 | . . . 2 . Watcher 3 | . 3 . . . Swarmer 5 | . . . 5 . Grunt 9 | . 7 . 2 . Sentry 1 | . . . 1 . Subdweller 8 | . . . 8 . Assembled 3 | . . 3 . . Best Kill Streak 6 | . 2 2 6 1 Combat Bots Only 4 | . 2 2 4 . Max Kills in Single Turn 2 | . 2 2 2 1 Gunslinging 1 | . 1 . . . Exploded 2 | . . 2 1 . Melee . | . . . . . Uniques/NPCs Destroyed . | . . . . . Combat | -11 -10 -10 -10 -9 -------- Run | Yrd Mat Min Sub Rec Hostile Shots Fired 138 | . 35 1 92 10 Missed 37 | . 9 . 24 4 Damage Taken 1368 | . 277 50 971 70 Core 256 | . 51 14 144 47 Absorbed by Shields . | . . . . . Ignored by Resistances 389 | . 83 15 271 20 Core Remaining (%) 100 | 100 . . . . Volleys Fired 129 | . 33 24 70 2 Largest 2 | . 2 1 2 2 Hottest 165 | . 130 100 165 65 Shots Fired 199 | . 67 26 102 4 Gun 139 | . 67 . 72 . Cannon 2 | . . . . 2 Launcher 10 | . . 5 3 2 Special 48 | . . 21 27 . Kinetic 45 | . . . 43 2 Thermal 132 | . 67 21 44 . Explosive 7 | . . 5 . 2 Electromagnetic 15 | . . . 15 . Robot Hit Streak 39 | . 11 5 39 1 Robot Miss Streak 8 | . 8 . 2 1 Penetration Max . | . . . . . Secondary Targets 1 | . 1 . . . Max Gunslinging Chain 1 | . 1 . . . Shots Hit Robots 124 | . 50 2 70 2 Core Hits 82 | . 32 7 40 3 Critical Kills . | . . . . . Critical Parts Destroyed . | . . . . . Critical Strikes 3 | . 3 . . . Burn 3 | . 3 . . . Melee Attacks 3 | . . . 3 . Impact . | . . . . . Slashing . | . . . . . Piercing . | . . . . . Sneak Attacks . | . . . . . Combat Hostiles . | . . . . . Follow-up Attacks . | . . . . . Damage Inflicted 2398 | . 654 171 1504 69 Guns 1841 | . 654 . 1187 . Cannons . | . . . . . Explosions 533 | . . 171 293 69 Melee . | . . . . . Ramming . | . . . . . Kinetic 994 | . . . 994 . Thermal 921 | . 654 . 267 . Explosive 240 | . . 171 . 69 Electromagnetic 243 | . . . 243 . Impact . | . . . . . Slashing . | . . . . . Piercing . | . . . . . Highest Corruption 1 | . 1 1 1 1 Average Corruption 1 | . 1 1 1 1 Corruption Purged . | . . . . . Corruption Blocked . | . . . . . Effects 28 | . 5 4 19 . Message Errors 11 | . 1 . 10 . Matter Fused 5 | . 1 1 3 . Heat Flow Errors 1 | . 1 . . . Energy Discharges 3 | . . 1 2 . Data Loss (minor) 3 | . . . 3 . Misfires 3 | . 1 2 . . Alerts 2 | . 1 . 1 . Overload Shots . | . . . . . Overflow Damage 16 | . . . 16 . Projectiles . | . . . . . Explosions 16 | . . . 16 . Melee . | . . . . . Knockbacks . | . . . . . Impact . | . . . . . Kinetic . | . . . . . Secondary . | . . . . . Self-Inflicted Damage 46 | . . 46 . . Shots 2 | . . 2 . . Rammed . | . . . . . Targets Rammed . | . . . . . Kicked . | . . . . . Crushed . | . . . . . Highest Temperature 327 | . 327 42 18 13 Average Temperature 68 | . 98 20 8 8 Received Heat Transfer 480 | . 216 . 219 45 Effects 1 | . 1 . . . Interference 1 | . 1 . . . Siege Activations . | . . . . . Robots Corrupted . | . . . . . Combat Hostiles . | . . . . . Parts Fried 3 | . . . 3 . Impact Corruptions . | . . . . . Robots Melted 1 | . 1 . . . Combat Hostiles 1 | . 1 . . . Parts Melted 2 | . 2 . . . Heat Transferred 2230 | . 1875 . 355 . Parts Sabotaged . | . . . . . Parts Stolen . | . . . . . Parts Stripped . | . . . . . Power Chain Reactions . | . . . . . Alert | -11 -10 -10 -10 -9 ------- Run | Yrd Mat Min Sub Rec Peak Influence 192 | . 192 37 . 68 Initial 51 | . . . . 51 Average 32 | . 37 23 . 51 Maximum Alert Level . | . . . . . Low Security (%) 100 | 100 100 100 . 100 Level 1 . | . . . . . Level 2 . | . . . . . Level 3 . | . . . . . Level 4 . | . . . . . Level 5 . | . . . . . High Security . | . . . . . Max Security . | . . . . . Squads Dispatched . | . . . . . Investigation . | . . . . . Extermination . | . . . . . Reinforcement . | . . . . . Assault . | . . . . . Garrison . | . . . . . Intercept . | . . . . . Searches Triggered . | . . . . . Construction Impeded . | . . . . . Haulers Reinforced . | . . . . . Active Scanning Responses . | . . . . . Cargo Convoy Interrupts . | . . . . . Stealth | -11 -10 -10 -10 -9 --------- Run | Yrd Mat Min Sub Rec Distress Signals 1 | . 1 . . . Communications Jammed . | . . . . . Distress Signals . | . . . . . Times Spotted 52 | . 12 2 37 1 Peak Tracking Total 6 | . 3 2 6 1 Tactical Retreats 3 | . . . 3 . Traps | -11 -10 -10 -10 -9 ------- Run | Yrd Mat Min Sub Rec Traps Triggered 5 | . 3 . 2 . Indirectly . | . . . . . Trap Hack Attempts . | . . . . . Triggered . | . . . . . Disarmed . | . . . . . Reprogrammed . | . . . . . Reused . | . . . . . Traps Extracted . | . . . . . Installed . | . . . . . Triggered . | . . . . . Machines | -11 -10 -10 -10 -9 ---------- Run | Yrd Mat Min Sub Rec Machines Disabled 5 | . . 1 4 . Max in Single Turn 2 | . . 1 2 . Machines Repaired . | . . . . . Machines Dismantled . | . . . . . Machines Sabotaged . | . . . . . Overloaded Fab Kills . | . . . . . Hacking | -11 -10 -10 -10 -9 --------- Run | Yrd Mat Min Sub Rec Machines Accessed 1 | . 1 . . . Terminals 1 | . 1 . . . Fabricators . | . . . . . Repair Stations . | . . . . . Recycling Units . | . . . . . Scanalyzers . | . . . . . Garrison Access . | . . . . . Total Hacks 4 | . 4 . . . Successful 1 | . 1 . . . Failed 3 | . 3 . . . Catastrophic . | . . . . . Database Lockouts . | . . . . . Manual 3 | . 3 . . . Terminals 4 | . 4 . . . Fabricators . | . . . . . Repair Stations . | . . . . . Recycling Units . | . . . . . Scanalyzers . | . . . . . Garrison Access . | . . . . . Terminal Hacks 1 | . 1 . . . Locate Traps 1 | . 1 . . . Fabricator Hacks . | . . . . . Repair Station Hacks . | . . . . . Recycling Unit Hacks . | . . . . . Scanalyzer . | . . . . . Garrison Access Hacks . | . . . . . Unauthorized Hacks . | . . . . . Terminals . | . . . . . Fabricators . | . . . . . Repair Stations . | . . . . . Recycling Units . | . . . . . Scanalyzers . | . . . . . Garrison Access . | . . . . . Data Cores Recovered . | . . . . . Used . | . . . . . Hacking Detections 1 | . 1 . . . Full Trace Events 1 | . 1 . . . Feedback Events . | . . . . . Feedback Blocked . | . . . . . Robot Schematics Acquired . | . . . . . Robots Built . | . . . . . Authchips . | . . . . . Time . | . . . . . Total Robot Build Rating . | . . . . . Part Schematics Acquired . | . . . . . Parts Built . | . . . . . Authchips . | . . . . . Time . | . . . . . Total Part Build Rating . | . . . . . Parts Repaired . | . . . . . Time . | . . . . . Parts Recycled . | . . . . . Recycled Matter . | . . . . . Retrieved Matter . | . . . . . Retrieved Components . | . . . . . Parts Scanalyzed . | . . . . . Part Schematics Acquired . | . . . . . Parts Damaged . | . . . . . Bothacking | -11 -10 -10 -10 -9 ------------ Run | Yrd Mat Min Sub Rec Used RIF Installer . | . . . . . Robots Hacked . | . . . . . Non-combat . | . . . . . Combat . | . . . . . Robot Hacks Applied . | . . . . . Relay Couplers Released . | . . . . . Fabnet Peak Effective % . | . . . . . Robots Rewired . | . . . . . Allies Hacked . | . . . . . Hacks Repelled . | . . . . . Allies | -11 -10 -10 -10 -9 -------- Run | Yrd Mat Min Sub Rec Total Allies . | . . . . . Largest Group . | . . . . . Highest-Rated Group . | . . . . . Highest-Rated Ally . | . . . . . Total Orders . | . . . . . Ally Attacks . | . . . . . Total Damage . | . . . . . Kills . | . . . . . Allies Corrupted . | . . . . . Allies Melted . | . . . . . Intel | -11 -10 -10 -10 -9 ------- Run | Yrd Mat Min Sub Rec Robot Analysis Total . | . . . . . Derelict Logs Recovered 2 | . . . 2 . Drone Launches . | . . . . . Drone Recoveries . | . . . . . Exploration | -11 -10 -10 -10 -9 ------------- Run | Yrd Mat Min Sub Rec Turns Passed 3763 | 75 991 432 2192 73 Spaces Moved 1895 | 47 521 146 1129 52 Core 87 | 11 . . 76 . Treads 1136 | 36 521 146 433 . Legs . | . . . . . Wheels 672 | . . . 620 52 Hover . | . . . . . Flight . | . . . . . Fastest Speed 50 | 50 160 160 110 105 Average Speed 161 | 134 160 160 165 110 Slowest Speed 550 | 160 160 160 550 120 Overloaded Moves . | . . . . . Propulsion Burnouts . | . . . . . Robots Hopped . | . . . . . Cave-ins Triggered . | . . . . . Exploration Rate (%) 35 | 4 89 23 48 14 Regions Visited 4 Branch Regions 3 Pre-discovered Areas . | . . . . . Known Exits Taken 1 | . . . 1 . Unknown Exits Taken 3 | 1 1 1 . . Scrap Searched 1 | . . . 1 . Spaces Dug 2 | . . 2 . . Terrain Destroyed 99 | . . 34 50 15 Melee . | . . . . . Projectile 4 | . . 3 1 . AOE 95 | . . 31 49 15 Terrain Rammed . | . . . . . Walls Destroyed . | . . . . . Machines Disabled . | . . . . . Actions | -11 -10 -10 -10 -9 --------- Run | Yrd Mat Min Sub Rec Total 2311 | 59 612 278 1295 67 Wait 192 | . 33 102 57 . Move 1891 | 46 520 145 1128 52 Hop . | . . . . . Pick Up 27 | 7 13 2 5 . Fast Attach 10 | . 3 . 4 3 Attach 17 | 6 2 . 6 3 Detach 3 | . 1 1 1 . Swap 20 | . 3 3 14 . Drop 19 | . 4 1 7 7 Fire 129 | . 33 24 70 2 Melee 3 | . . . 3 . Ram . | . . . . . Kick . | . . . . . Crush . | . . . . . Escape Stasis . | . . . . . Rewire . | . . . . . Trap . | . . . . . Miscellaneous . | . . . . . Route ------- -11/Scrapyard -10/Materials (discovered 4 exits: [*Mat x3] / [*Min]) -10/Mines -10/Subcaves (discovered 2 exits: [*Mat] / *Rec) -9/Recycling History --------- Turn | Location | Event 3 | -11/Scrapyard | Discovered new exit (range 16) 76 | -11/Scrapyard | Entered Materials 304 | -10/Materials | Discovered new exit (range 5) 308 | -10/Materials | Build established: Mutant 542 | -10/Materials | Discovered new exit (range 16) 968 | -10/Materials | Discovered new exit (range 8) 1053 | -10/Materials | Discovered new exit (range 10) 1067 | -10/Materials | Entered Mines 1078 | -10/Mines | Assembled infested the area 1082 | -10/Mines | Met a Derelict bent on vengeance 1083 | -10/Mines | Assisted by a Guerilla fighting off Assembled 1496 | -10/Mines | Discovered new exit (range 3) 1499 | -10/Mines | Entered Subcaves 1912 | -10/Subcaves | Learned Materials emergency access door positions 2001 | -10/Subcaves | Discovered new exit (range 15) 2291 | -10/Subcaves | A Subdweller sparked back to life 2291 | -10/Subcaves | A Subdweller sparked back to life 2291 | -10/Subcaves | A Subdweller sparked back to life 2339 | -10/Subcaves | Found Prototype Power Core 2340 | -10/Subcaves | Identified Meta Core 2341 | -10/Subcaves | Attached Meta Core, gained temporary slots: Propulsion, Utility, Weapon 2625 | -10/Subcaves | Ambushed by Subdweller buried in earth 2634 | -10/Subcaves | Build established: Tank 2635 | -10/Subcaves | Core integrity fell below 50% 2646 | -10/Subcaves | Discovered new exit (range 11) 2689 | -10/Subcaves | Identified exit to Recycling 2766 | -10/Subcaves | Learned Materials trap positions 2895 | -10/Subcaves | Shifting Twisted Machinery released Riot Gun 2897 | -10/Subcaves | Shifting Twisted Machinery released Sub. Monowheel 2955 | -10/Subcaves | A swath of the cavern ceiling suddenly collapsed 3222 | -10/Subcaves | Lost 4 parts (1n1u2w) 3289 | -10/Subcaves | Build established: Mutant 3653 | -10/Subcaves | Core integrity fell below 20% 3691 | -10/Subcaves | Entered Recycling 3699 | -9/Recycling | Found Scrap Engine 3764 | -9/Recycling | Destroyed by Y-45 Defender with Heavy Assault Rifle Last Messages --------------- Subatomizers dissect the Broken Sub. Monowheel. KKUBLMXK/WMV%ZCPHPELOKO2 A mysterious object appears at your location! LOCATION=RECYCLING GOAL=ESCAPE Discarded Signal Interpreter. Dropped Spread Laser. Dropped Imp. EM Shotgun. Discarded Meta Core. Dropped Lrg. Storage Unit. Acquired Scrap Engine. Dropped Cooling System. Y-45 Defender springs to life. Critical hit (Burn: +37). Dropped Mining Laser. Acquired Lgt. Cannon. Acquired Com. Wheel. Acquired 60 matter. R-06 Scavenger collects Mining Laser. R-06 Scavenger destroyed. Map ----- +----------------------------------------------------+ | | | | | | | | | | | ?????????????????????????????????????? | | ?????????????????????????????????????? | | ??????????????#####??????????????????? | | ??????????????#/ /#??????????????????? | | ????###########///####???????????????? | | ????# #???????????????? | | ????# ############## #???????????????? | | ????# #????????????# ########+##+##??? | | ????# #????????????# ?? | | ??### #????????????# ?? | | ??# !!# ##### ?? | | ??#[ [# / ?? | | ??#!! # ##### ##??? | | ??# ! #????????????# #???? | | ??# #????????????# #???? | | ??# +????????????# ####T#### # #???? | | ??# #????????????# #???##????#?????? | | ??# #????????????# #???????????????? | | ??# #????????????# #?#?????????????? | | ??# #?######### #?????????????? | | ??# #?# ] @% Y% #??????????????? | | ??# #?# % !/ #?????????????? | | ??# #?#* #?????????????? | | ??# ?# ! r %% #?????????????? | | ??# #?# ! r ] ##?????????????? | | ??? ??# ! #??????????????? | | ??? ??###r##r########??????????????? | | ????????? ?? #????????????????????? | | ???????? ?? r#????????????????????? | | ??????? ?? #????????????????????? | | ??????#####??? ?????????????????????? | | ?????????????? #????????????????????? | | ?????????????? #????????????????????? | | ??????????????? #????????????????????? | | ??????????????? #????????????????????? | | ??????????????? ?????????????????????? | | ?????????????????????????????????????? | | ?????????????????????????????????????? | | ?????????????????????????????????????? | | ?????????????????????????????????????? | | ?????????????????????????????????????? | | ?????????????????????????????????????? | | ?????????????????????????????????????? | | ?????????????????????????????????????? | | ?????????????????????????????????????? | +----------------------------------------------------+ Best States ------------- Heat Dissipation 47 Energy Generation 17 Energy Capacity 200 Matter Stores 300 Matter Capacity 300 Sight Range 16 Robot Scan Range 14 Terrain Scan Range 16 Terrain Scan Density 10 Armor Coverage 150 Resistance: KI 20 Resistance: TH 20 Resistance: EX 20 Resistance: EM 20 Resistance: I 20 Resistance: S 20 Resistance: P 20 Evasion (%) 40 Recoil Reduction 2 Offensive Hacking 10 Item Schematics ----------------- None Robot Schematics ------------------ None Fabricated ------------ Nothing Alien Tech Used ----------------- None Achievements -------------- None Challenges ------------ None Game ------ Seed HellfireNetworkRailgun Manual? 0 Play Time 00:26:59 Cumulative 17.5 hours Start 2024.04.04 @ 19:50:47 End 2024.04.04 @ 20:16:43 Sessions 1 Manual Loads 0 Difficulty Adventurer Special Mode None Game No. 20 Rogue 0 Adventurer 20 Explorer 0 Win Type - Total 1 Types 1/0/0/0/0/0/0/0/0 Lore% 14 Gallery% 33 Achievement% 28 Wizard Run 0 Options --------- Layout 1 ASCII 0 Keyboard 0 Movement Mouse Keybinds 0 Fullscreen 1 Font 32/SmallcapsGlow Map View 50x40 Zoom Use 0% Tactical HUD 0 Map Filters NONE Filters NONE Steam 1 RUN: 7003703c-19a0-428e-a96b-558b04aee350